[Event "Late-Titled-Tuesday-Blitz-April-30-2024"]
[Site "Chess.com"]
[Date "2024.04.30"]
[Round "3"]
[White "Rutricks"]
[Black "KuzubovYuriy"]
[Result "0-1"]
[WhiteElo "2684"]
[BlackElo "2966"]
[TimeControl "180+1"]
[EndTime "14:28:59 PDT"]
[Termination "KuzubovYuriy won by resignation"]

1. Nc3 {[%clk 0:02:59.8]} 1... d5 {[%clk 0:02:51.4]} 2. d4 {[%clk 0:02:59.7]}
2... Bf5 {[%clk 0:02:47]} 3. f3 {[%clk 0:02:58]} 3... Bg6 {[%clk 0:02:44.8]} 4.
e4 {[%clk 0:02:56.9]} 4... dxe4 {[%clk 0:02:44.7]} 5. fxe4 {[%clk 0:02:57.5]}
5... e5 {[%clk 0:02:42.3]} 6. d5 {[%clk 0:02:56.8]} 6... Bb4 {[%clk 0:02:39.8]}
7. Bb5+ {[%clk 0:02:37.1]} 7... c6 {[%clk 0:02:28.5]} 8. dxc6 {[%clk 0:02:36.8]}
8... Bxc3+ {[%clk 0:02:22.7]} 9. bxc3 {[%clk 0:02:36.5]} 9... Qxd1+ {[%clk
0:02:23.1]} 10. Kxd1 {[%clk 0:02:36.7]} 10... Nxc6 {[%clk 0:02:23.5]} 11. Nf3
{[%clk 0:02:20.4]} 11... O-O-O+ {[%clk 0:02:21]} 12. Bd2 {[%clk 0:02:08.1]}
12... Nf6 {[%clk 0:02:03.7]} 13. Kc1 {[%clk 0:02:02.1]} 13... Nxe4 {[%clk
0:01:59.9]} 14. Be3 {[%clk 0:02:02.4]} 14... f6 {[%clk 0:01:58]} 15. Kb2 {[%clk
0:01:45.6]} 15... Nd6 {[%clk 0:01:56.8]} 16. Be2 {[%clk 0:01:29.3]} 16... Bh5
{[%clk 0:01:52.5]} 17. Rhe1 {[%clk 0:01:24.5]} 17... e4 {[%clk 0:01:50.2]} 18.
Nd4 {[%clk 0:01:13.5]} 18... Bxe2 {[%clk 0:01:49.3]} 19. Nxc6 {[%clk 0:01:13.3]}
19... bxc6 {[%clk 0:01:39.5]} 20. Rxe2 {[%clk 0:01:12.4]} 20... Nc4+ {[%clk
0:01:38.9]} 21. Kc1 {[%clk 0:01:09.8]} 21... Nxe3 {[%clk 0:01:31.1]} 22. Rxe3
{[%clk 0:01:10.7]} 22... f5 {[%clk 0:01:31.3]} 23. Rb1 {[%clk 0:01:11.3]} 23...
Rd7 {[%clk 0:01:26.1]} 24. Rb4 {[%clk 0:01:10]} 24... Rhd8 {[%clk 0:01:24.3]}
25. g4 {[%clk 0:01:09]} 25... g6 {[%clk 0:01:22.5]} 26. Rc4 {[%clk 0:01:09.1]}
26... Kc7 {[%clk 0:01:20.9]} 27. Ra4 {[%clk 0:01:08.5]} 27... Rd1+ {[%clk
0:01:18.3]} 28. Kb2 {[%clk 0:01:08.6]} 28... Rb8+ {[%clk 0:01:17.3]} 29. Ka3
{[%clk 0:01:09.1]} 29... Rb7 {[%clk 0:01:15.4]} 30. Rh3 {[%clk 0:00:59.1]} 30...
Rd7 {[%clk 0:01:07.7]} 31. gxf5 {[%clk 0:00:40.4]} 31... gxf5 {[%clk 0:01:07.4]}
32. Rh5 {[%clk 0:00:40.2]} 32... Rf7 {[%clk 0:01:00.7]} 33. Ra5 {[%clk
0:00:38.2]} 33... f4 {[%clk 0:00:56.6]} 34. Raf5 {[%clk 0:00:16]} 34... Kd8
{[%clk 0:00:56.6]} 35. Rfg5 {[%clk 0:00:02.7]} 35... f3 {[%clk 0:00:54.5]} 36.
Rg8+ {[%clk 0:00:03.4]} 36... Kc7 {[%clk 0:00:54.5]} 37. Rg1 {[%clk 0:00:04]}
37... Rb5 {[%clk 0:00:49.9]} 38. Rh4 {[%clk 0:00:01.5]} 38... f2 {[%clk
0:00:48.3]} 39. Rf1 {[%clk 0:00:01.6]} 39... Re5 {[%clk 0:00:48.3]} 40. Rxf2
{[%clk 0:00:00.9]} 40... Rxf2 {[%clk 0:00:48]} 41. Rxh7+ {[%clk 0:00:01.7]}
41... Kb6 {[%clk 0:00:48.3]} 42. Rh5 {[%clk 0:00:02.3]} 42... Rxh5 {[%clk
0:00:48]} 0-1

[Event "Late-Titled-Tuesday-Blitz-April-30-2024"]
[Site "Chess.com"]
[Date "2024.04.30"]
[Round "3"]
[White "King_Deded4d5"]
[Black "AlexPapasimakopoulos"]
[Result "1/2-1/2"]
[WhiteElo "2460"]
[BlackElo "2637"]
[TimeControl "180+1"]
[EndTime "14:28:59 PDT"]
[Termination "Game drawn - insufficient material"]

1. d4 {[%clk 0:03:00.9]} 1... Nf6 {[%clk 0:02:59.3]} 2. Nc3 {[%clk 0:03:00.8]}
2... d5 {[%clk 0:02:57.6]} 3. Bf4 {[%clk 0:03:01.4]} 3... e6 {[%clk 0:02:55.8]}
4. Nb5 {[%clk 0:03:01.2]} 4... Na6 {[%clk 0:02:56.1]} 5. e3 {[%clk 0:03:01.1]}
5... Bb4+ {[%clk 0:02:56.7]} 6. c3 {[%clk 0:03:01]} 6... Be7 {[%clk 0:02:57.4]}
7. a4 {[%clk 0:02:58.7]} 7... c6 {[%clk 0:02:57.7]} 8. Na3 {[%clk 0:02:58.9]}
8... Nb8 {[%clk 0:02:58.3]} 9. Nf3 {[%clk 0:02:52.3]} 9... Bd6 {[%clk
0:02:58.2]} 10. h4 {[%clk 0:02:46.5]} 10... Bxf4 {[%clk 0:02:57.3]} 11. exf4
{[%clk 0:02:46.6]} 11... O-O {[%clk 0:02:53.4]} 12. h5 {[%clk 0:02:46.6]} 12...
h6 {[%clk 0:02:53.5]} 13. Ne5 {[%clk 0:02:45.9]} 13... c5 {[%clk 0:02:49.7]} 14.
dxc5 {[%clk 0:02:44.9]} 14... Nbd7 {[%clk 0:02:49.7]} 15. b4 {[%clk 0:02:43.3]}
15... a5 {[%clk 0:02:49.7]} 16. Nb5 {[%clk 0:02:30.9]} 16... Ne8 {[%clk
0:02:39.8]} 17. Bd3 {[%clk 0:02:16.9]} 17... Nc7 {[%clk 0:02:38.5]} 18. Nd6
{[%clk 0:02:09.3]} 18... Na6 {[%clk 0:02:34.5]} 19. Bxa6 {[%clk 0:01:48.6]}
19... Rxa6 {[%clk 0:02:33.9]} 20. Qd4 {[%clk 0:01:37.8]} 20... Nf6 {[%clk
0:02:29.2]} 21. b5 {[%clk 0:01:19.9]} 21... Ra8 {[%clk 0:02:27.6]} 22. c4 {[%clk
0:01:20.2]} 22... b6 {[%clk 0:02:23.8]} 23. Ndxf7 {[%clk 0:01:04.7]} 23... bxc5
{[%clk 0:02:19.8]} 24. Nxd8 {[%clk 0:01:03.5]} 24... cxd4 {[%clk 0:02:20.1]} 25.
Ndc6 {[%clk 0:01:01.6]} 25... dxc4 {[%clk 0:02:20.3]} 26. Nxc4 {[%clk
0:00:53.6]} 26... Bb7 {[%clk 0:02:16.3]} 27. N4e5 {[%clk 0:00:49.2]} 27... Nd5
{[%clk 0:02:12.7]} 28. g3 {[%clk 0:00:47.2]} 28... Nb4 {[%clk 0:02:07.5]} 29.
Ke2 {[%clk 0:00:42.4]} 29... Bxc6 {[%clk 0:02:06.8]} 30. Nxc6 {[%clk 0:00:41]}
30... Nxc6 {[%clk 0:02:06.7]} 31. bxc6 {[%clk 0:00:41.9]} 31... Rfc8 {[%clk
0:02:06.4]} 32. Rhc1 {[%clk 0:00:41.2]} 32... Ra6 {[%clk 0:02:06]} 33. Kd3
{[%clk 0:00:21.6]} 33... Raxc6 {[%clk 0:02:05.6]} 34. Rxc6 {[%clk 0:00:22.5]}
34... Rxc6 {[%clk 0:02:06.1]} 35. Rb1 {[%clk 0:00:15.2]} 35... Rc3+ {[%clk
0:02:06]} 36. Kxd4 {[%clk 0:00:14.9]} 36... Ra3 {[%clk 0:02:06.9]} 37. Rb8+
{[%clk 0:00:12.6]} 37... Kf7 {[%clk 0:02:07.2]} 38. Ke5 {[%clk 0:00:12.1]} 38...
Rxa4 {[%clk 0:02:05.7]} 39. Rb7+ {[%clk 0:00:12.7]} 39... Kg8 {[%clk 0:02:05.2]}
40. Kxe6 {[%clk 0:00:13.3]} 40... Ra2 {[%clk 0:02:02.4]} 41. Rb8+ {[%clk
0:00:12.3]} 41... Kh7 {[%clk 0:02:02.6]} 42. f3 {[%clk 0:00:07.7]} 42... Ra3
{[%clk 0:02:01]} 43. f5 {[%clk 0:00:04.2]} 43... Rxf3 {[%clk 0:02:00.1]} 44. g4
{[%clk 0:00:04.8]} 44... Rf4 {[%clk 0:01:59.5]} 45. Ra8 {[%clk 0:00:04.7]} 45...
a4 {[%clk 0:01:57.1]} 46. Ra7 {[%clk 0:00:03.9]} 46... Kg8 {[%clk 0:01:51.5]}
47. Ra8+ {[%clk 0:00:03.8]} 47... Kh7 {[%clk 0:01:52.1]} 48. Ra7 {[%clk
0:00:04.7]} 48... Re4+ {[%clk 0:01:52.7]} 49. Kd5 {[%clk 0:00:04.8]} 49... Rxg4
{[%clk 0:01:49.9]} 50. f6 {[%clk 0:00:05.2]} 50... Kg8 {[%clk 0:01:49.6]} 51.
fxg7 {[%clk 0:00:03.7]} 51... Rxg7 {[%clk 0:01:37.8]} 52. Rxa4 {[%clk
0:00:03.9]} 52... Rg5+ {[%clk 0:01:38.4]} 53. Ke6 {[%clk 0:00:04.3]} 53... Rxh5
{[%clk 0:01:38.5]} 54. Kf6 {[%clk 0:00:04.7]} 54... Rg5 {[%clk 0:01:38.6]} 55.
Ra8+ {[%clk 0:00:04.4]} 55... Kh7 {[%clk 0:01:39]} 56. Ra7+ {[%clk 0:00:05.3]}
56... Kh8 {[%clk 0:01:39.4]} 57. Ra8+ {[%clk 0:00:06]} 57... Rg8 {[%clk
0:01:39.1]} 58. Rxg8+ {[%clk 0:00:06.6]} 58... Kxg8 {[%clk 0:01:40]} 59. Kg6
{[%clk 0:00:07.5]} 59... Kh8 {[%clk 0:01:39.4]} 60. Kxh6 {[%clk 0:00:05.5]}
1/2-1/2

[Event "Late-Titled-Tuesday-Blitz-April-30-2024"]
[Site "Chess.com"]
[Date "2024.04.30"]
[Round "3"]
[White "NovakRatko"]
[Black "nabukatnezarr"]
[Result "1-0"]
[WhiteElo "2392"]
[BlackElo "2587"]
[TimeControl "180+1"]
[EndTime "14:28:59 PDT"]
[Termination "NovakRatko won on time"]

1. d4 {[%clk 0:02:56.1]} 1... Nf6 {[%clk 0:02:59.5]} 2. c4 {[%clk 0:02:56.1]}
2... e6 {[%clk 0:02:59.8]} 3. Bg5 {[%clk 0:02:56.4]} 3... h6 {[%clk 0:02:58.9]}
4. Bxf6 {[%clk 0:02:54.3]} 4... Qxf6 {[%clk 0:02:57.1]} 5. Nf3 {[%clk
0:02:54.9]} 5... Qd8 {[%clk 0:02:46.8]} 6. e4 {[%clk 0:02:52.9]} 6... Be7 {[%clk
0:02:47.3]} 7. Nc3 {[%clk 0:02:52.4]} 7... c5 {[%clk 0:02:47.4]} 8. d5 {[%clk
0:02:52.1]} 8... exd5 {[%clk 0:02:47.2]} 9. cxd5 {[%clk 0:02:48.4]} 9... d6
{[%clk 0:02:46.9]} 10. h3 {[%clk 0:02:42]} 10... O-O {[%clk 0:02:47.2]} 11. Bd3
{[%clk 0:02:41.9]} 11... Bf6 {[%clk 0:02:46.6]} 12. O-O {[%clk 0:02:41.5]} 12...
Nd7 {[%clk 0:02:45.1]} 13. Re1 {[%clk 0:02:25.7]} 13... Ne5 {[%clk 0:02:39.3]}
14. Nxe5 {[%clk 0:02:20.6]} 14... Bxe5 {[%clk 0:02:40.2]} 15. Qd2 {[%clk
0:02:21.1]} 15... Qf6 {[%clk 0:02:35.2]} 16. Rab1 {[%clk 0:02:17.3]} 16... Bd7
{[%clk 0:02:31.2]} 17. Ne2 {[%clk 0:02:16.7]} 17... b5 {[%clk 0:02:27.5]} 18. f4
{[%clk 0:02:16.1]} 18... Bd4+ {[%clk 0:02:27.2]} 19. Nxd4 {[%clk 0:02:16.4]}
19... Qxd4+ {[%clk 0:02:28.1]} 20. Qe3 {[%clk 0:02:17]} 20... Qxe3+ {[%clk
0:02:16.9]} 21. Rxe3 {[%clk 0:02:16.5]} 21... f6 {[%clk 0:02:14.4]} 22. b3
{[%clk 0:02:14.7]} 22... Rfe8 {[%clk 0:02:12]} 23. Rbe1 {[%clk 0:02:14.3]} 23...
Rac8 {[%clk 0:01:50.8]} 24. e5 {[%clk 0:02:10]} 24... fxe5 {[%clk 0:01:50.7]}
25. fxe5 {[%clk 0:02:09.8]} 25... dxe5 {[%clk 0:01:51.1]} 26. Rxe5 {[%clk
0:02:09.3]} 26... Rxe5 {[%clk 0:01:52]} 27. Rxe5 {[%clk 0:02:09.6]} 27... c4
{[%clk 0:01:52.5]} 28. bxc4 {[%clk 0:02:10.1]} 28... bxc4 {[%clk 0:01:53.4]} 29.
Bc2 {[%clk 0:02:08.9]} 29... Rc5 {[%clk 0:01:43.7]} 30. Kf2 {[%clk 0:02:07.3]}
30... Ra5 {[%clk 0:01:39.3]} 31. Bb1 {[%clk 0:01:57.4]} 31... Bc6 {[%clk
0:01:16.7]} 32. Be4 {[%clk 0:01:29.5]} 32... c3 {[%clk 0:00:48.7]} 33. Ke3
{[%clk 0:01:23.5]} 33... c2 {[%clk 0:00:47.5]} 34. Bxc2 {[%clk 0:01:22.5]} 34...
Rxa2 {[%clk 0:00:28.8]} 35. Bb3 {[%clk 0:01:14.5]} 35... Ra3 {[%clk 0:00:20.6]}
36. dxc6+ {[%clk 0:01:14.5]} 36... Rxb3+ {[%clk 0:00:21.4]} 37. Kd4 {[%clk
0:01:04.9]} 37... Rb8 {[%clk 0:00:20.3]} 38. Kd5 {[%clk 0:01:02]} 38... Rf8
{[%clk 0:00:15.8]} 39. Kd6 {[%clk 0:01:01]} 39... Kf7 {[%clk 0:00:14.4]} 40.
Re7+ {[%clk 0:01:00.3]} 40... Kf6 {[%clk 0:00:13.9]} 41. Rxa7 {[%clk 0:01:00.7]}
41... Rb8 {[%clk 0:00:02.7]} 42. c7 {[%clk 0:00:59.8]} 42... Rf8 {[%clk
0:00:02.2]} 43. Rb7 {[%clk 0:00:57.8]} 1-0

[Event "Late-Titled-Tuesday-Blitz-April-30-2024"]
[Site "Chess.com"]
[Date "2024.04.30"]
[Round "3"]
[White "JonasEilenberg"]
[Black "margarita_2703"]
[Result "1-0"]
[WhiteElo "2556"]
[BlackElo "2315"]
[TimeControl "180+1"]
[EndTime "14:29:01 PDT"]
[Termination "JonasEilenberg won by checkmate"]

1. d4 {[%clk 0:02:57.2]} 1... d5 {[%clk 0:02:59.5]} 2. Nf3 {[%clk 0:02:57.3]}
2... Nf6 {[%clk 0:02:59.4]} 3. c3 {[%clk 0:02:57.7]} 3... Bf5 {[%clk 0:02:58.9]}
4. Qb3 {[%clk 0:02:55.3]} 4... Qc8 {[%clk 0:02:54.2]} 5. c4 {[%clk 0:02:55.7]}
5... e6 {[%clk 0:02:52.6]} 6. Nc3 {[%clk 0:02:55.9]} 6... c6 {[%clk 0:02:52.6]}
7. Bf4 {[%clk 0:02:55.6]} 7... Nbd7 {[%clk 0:02:52.2]} 8. e3 {[%clk 0:02:56.1]}
8... h6 {[%clk 0:02:52.1]} 9. Rc1 {[%clk 0:02:55.8]} 9... Nb6 {[%clk 0:02:48.2]}
10. cxd5 {[%clk 0:02:54.5]} 10... exd5 {[%clk 0:02:49.1]} 11. h3 {[%clk
0:02:54.6]} 11... Qd7 {[%clk 0:02:48.4]} 12. Be2 {[%clk 0:02:55.1]} 12... Bd6
{[%clk 0:02:46.2]} 13. Ne5 {[%clk 0:02:53.9]} 13... Qe7 {[%clk 0:02:45.9]} 14.
O-O {[%clk 0:02:53.2]} 14... Nfd7 {[%clk 0:02:44.2]} 15. Nxd7 {[%clk 0:02:47.7]}
15... Qxd7 {[%clk 0:02:45.1]} 16. Bxd6 {[%clk 0:02:41.7]} 16... Qxd6 {[%clk
0:02:46]} 17. a4 {[%clk 0:02:42.6]} 17... Rb8 {[%clk 0:02:43.7]} 18. a5 {[%clk
0:02:42.2]} 18... Nd7 {[%clk 0:02:44.3]} 19. Na4 {[%clk 0:02:36.9]} 19... O-O
{[%clk 0:02:42.9]} 20. Bd3 {[%clk 0:02:32.8]} 20... Bxd3 {[%clk 0:02:42.1]} 21.
Qxd3 {[%clk 0:02:33.7]} 21... Qb4 {[%clk 0:02:42.2]} 22. Nc5 {[%clk 0:02:32.6]}
22... Nxc5 {[%clk 0:02:40.3]} 23. Rxc5 {[%clk 0:02:33.5]} 23... Qxb2 {[%clk
0:02:38.7]} 24. Rb1 {[%clk 0:02:32.1]} 24... Qa2 {[%clk 0:02:38.4]} 25. g4
{[%clk 0:02:13.9]} 25... Qa4 {[%clk 0:02:32.7]} 26. Qc3 {[%clk 0:02:10.5]} 26...
Qa2 {[%clk 0:02:20.7]} 27. Qd3 {[%clk 0:02:06.5]} 27... Rfc8 {[%clk 0:02:11.5]}
28. Rbc1 {[%clk 0:02:02]} 28... Qa4 {[%clk 0:02:08]} 29. Qc3 {[%clk 0:01:59.2]}
29... Qa2 {[%clk 0:01:59.2]} 30. Rc2 {[%clk 0:01:59.5]} 30... Qb1+ {[%clk
0:01:56.2]} 31. Kg2 {[%clk 0:01:58.9]} 31... Qd1 {[%clk 0:01:51.8]} 32. Rd2
{[%clk 0:01:44.1]} 32... Qa4 {[%clk 0:01:50.3]} 33. Rc2 {[%clk 0:01:40.6]} 33...
h5 {[%clk 0:01:47.2]} 34. gxh5 {[%clk 0:01:39.8]} 34... Kh7 {[%clk 0:01:38.2]}
35. Qd3+ {[%clk 0:01:37.5]} 35... Kh6 {[%clk 0:01:33.9]} 36. Qf5 {[%clk
0:01:35.2]} 36... Rf8 {[%clk 0:01:32.2]} 37. a6 {[%clk 0:01:31.8]} 37... Qxa6
{[%clk 0:01:29.3]} 38. R5c3 {[%clk 0:01:07.9]} 38... g6 {[%clk 0:01:26.4]} 39.
Qf4+ {[%clk 0:01:00.9]} 39... Kxh5 {[%clk 0:01:25.7]} 40. e4 {[%clk 0:00:58.2]}
40... g5 {[%clk 0:01:10.1]} 41. Qf5 {[%clk 0:00:31.1]} 41... Kh6 {[%clk
0:01:01.6]} 42. h4 {[%clk 0:00:17.5]} 42... f6 {[%clk 0:01:00]} 43. hxg5+ {[%clk
0:00:16.2]} 43... Kg7 {[%clk 0:00:59.6]} 44. Rh3 {[%clk 0:00:14.5]} 44... fxg5
{[%clk 0:00:48.4]} 45. Rh7+ {[%clk 0:00:14.2]} 45... Kg8 {[%clk 0:00:47]} 46.
Qg6# {[%clk 0:00:14.6]} 1-0

[Event "Late-Titled-Tuesday-Blitz-April-30-2024"]
[Site "Chess.com"]
[Date "2024.04.30"]
[Round "3"]
[White "lupta_robin"]
[Black "tptagain"]
[Result "0-1"]
[WhiteElo "2593"]
[BlackElo "2963"]
[TimeControl "180+1"]
[EndTime "14:29:03 PDT"]
[Termination "tptagain won by resignation"]

1. b3 {[%clk 0:03:00.9]} 1... c5 {[%clk 0:02:58.1]} 2. Bb2 {[%clk 0:02:59.6]}
2... Nc6 {[%clk 0:02:58.4]} 3. e4 {[%clk 0:02:59.9]} 3... Nf6 {[%clk 0:02:57.7]}
4. Nc3 {[%clk 0:02:57.3]} 4... d6 {[%clk 0:02:51.2]} 5. Bb5 {[%clk 0:02:55.9]}
5... g6 {[%clk 0:02:47.9]} 6. f4 {[%clk 0:02:52.1]} 6... Bd7 {[%clk 0:02:46.4]}
7. Nf3 {[%clk 0:02:49.6]} 7... Bg7 {[%clk 0:02:46.1]} 8. Qe2 {[%clk 0:02:17.1]}
8... Nd4 {[%clk 0:02:39.1]} 9. Bxd7+ {[%clk 0:02:16.2]} 9... Qxd7 {[%clk
0:02:37.1]} 10. Qd3 {[%clk 0:02:16.7]} 10... Nc6 {[%clk 0:02:03.4]} 11. O-O-O
{[%clk 0:01:54.4]} 11... O-O {[%clk 0:02:03.5]} 12. h3 {[%clk 0:01:23.5]} 12...
Nh5 {[%clk 0:01:54.3]} 13. Qe3 {[%clk 0:01:08.1]} 13... e5 {[%clk 0:01:43.5]}
14. f5 {[%clk 0:00:53.3]} 14... Nd4 {[%clk 0:01:32]} 15. g4 {[%clk 0:00:44.5]}
15... Nf4 {[%clk 0:01:31]} 16. h4 {[%clk 0:00:37.6]} 16... a5 {[%clk 0:01:04.6]}
17. h5 {[%clk 0:00:33.6]} 17... gxf5 {[%clk 0:00:56.5]} 18. gxf5 {[%clk
0:00:31.8]} 18... Kh8 {[%clk 0:00:54.2]} 19. h6 {[%clk 0:00:28]} 19... Bf6
{[%clk 0:00:54.2]} 20. Rdg1 {[%clk 0:00:25.8]} 20... Rg8 {[%clk 0:00:50.6]} 21.
Kb1 {[%clk 0:00:22.7]} 21... b5 {[%clk 0:00:46.4]} 22. Nd1 {[%clk 0:00:18.9]}
22... a4 {[%clk 0:00:42.6]} 23. Nf2 {[%clk 0:00:16.9]} 23... axb3 {[%clk
0:00:39.5]} 24. axb3 {[%clk 0:00:16.4]} 24... Qa7 {[%clk 0:00:34.5]} 25. Nxd4
{[%clk 0:00:12.9]} 25... cxd4 {[%clk 0:00:32.7]} 26. Qf3 {[%clk 0:00:13]} 26...
Qa2+ {[%clk 0:00:27.8]} 27. Kc1 {[%clk 0:00:12.9]} 27... Rac8 {[%clk 0:00:25.9]}
28. Rxg8+ {[%clk 0:00:10.6]} 28... Rxg8 {[%clk 0:00:25.8]} 29. Ng4 {[%clk
0:00:10.2]} 29... Bg5 {[%clk 0:00:22.4]} 30. Rg1 {[%clk 0:00:08.5]} 30... d3
{[%clk 0:00:22.1]} 31. Ne3 {[%clk 0:00:07.2]} 31... Ne2+ {[%clk 0:00:21.5]} 32.
Kd1 {[%clk 0:00:05.9]} 32... Qb1+ {[%clk 0:00:21.6]} 0-1

[Event "Late-Titled-Tuesday-Blitz-April-30-2024"]
[Site "Chess.com"]
[Date "2024.04.30"]
[Round "3"]
[White "Shankland"]
[Black "Meri-Arabidze"]
[Result "1-0"]
[WhiteElo "2954"]
[BlackElo "2681"]
[TimeControl "180+1"]
[EndTime "14:29:05 PDT"]
[Termination "Shankland won on time"]

1. d4 {[%clk 0:03:00.9]} 1... Nf6 {[%clk 0:02:57.9]} 2. c4 {[%clk 0:03:00.6]}
2... e6 {[%clk 0:02:58.1]} 3. Nf3 {[%clk 0:03:00.8]} 3... Bb4+ {[%clk
0:02:58.3]} 4. Bd2 {[%clk 0:03:00.1]} 4... Qe7 {[%clk 0:02:58.2]} 5. e3 {[%clk
0:03:00.3]} 5... O-O {[%clk 0:02:55.3]} 6. Bd3 {[%clk 0:03:00.8]} 6... a5 {[%clk
0:02:55.2]} 7. Nc3 {[%clk 0:03:00.5]} 7... d5 {[%clk 0:02:52]} 8. O-O {[%clk
0:02:56]} 8... b6 {[%clk 0:02:51.8]} 9. cxd5 {[%clk 0:02:52.4]} 9... exd5 {[%clk
0:02:51.5]} 10. Qc2 {[%clk 0:02:50.1]} 10... Ba6 {[%clk 0:02:49]} 11. Rfc1
{[%clk 0:02:48.4]} 11... Bxd3 {[%clk 0:02:48.6]} 12. Qxd3 {[%clk 0:02:48.7]}
12... Bxc3 {[%clk 0:02:42]} 13. bxc3 {[%clk 0:02:44.7]} 13... c5 {[%clk
0:02:36.2]} 14. Qb5 {[%clk 0:02:37.4]} 14... Nbd7 {[%clk 0:02:33.4]} 15. c4
{[%clk 0:02:35]} 15... cxd4 {[%clk 0:02:27.9]} 16. Nxd4 {[%clk 0:02:34.4]} 16...
Ne4 {[%clk 0:02:22.3]} 17. Be1 {[%clk 0:02:30.1]} 17... dxc4 {[%clk 0:02:22.4]}
18. Qxc4 {[%clk 0:02:24.8]} 18... Ne5 {[%clk 0:02:14.9]} 19. Qd5 {[%clk
0:02:23.5]} 19... Nd3 {[%clk 0:01:57.8]} 20. Nc6 {[%clk 0:02:22]} 20... Qa3
{[%clk 0:01:48.2]} 21. Rc4 {[%clk 0:01:37]} 21... Nxe1 {[%clk 0:01:39.6]} 22.
Qxe4 {[%clk 0:01:32]} 22... Rfe8 {[%clk 0:01:27.7]} 23. Qd4 {[%clk 0:01:26.5]}
23... b5 {[%clk 0:00:37.5]} 24. Rc3 {[%clk 0:01:24.8]} 24... Qb2 {[%clk
0:00:30.8]} 25. Rxe1 {[%clk 0:01:24.5]} 25... Qxa2 {[%clk 0:00:29.9]} 26. Rc5
{[%clk 0:01:22.3]} 26... b4 {[%clk 0:00:23.9]} 27. Ra1 {[%clk 0:01:09.5]} 27...
Qe2 {[%clk 0:00:19.9]} 28. Rcxa5 {[%clk 0:01:03.2]} 28... Rxa5 {[%clk
0:00:17.2]} 29. Nxa5 {[%clk 0:01:03.4]} 29... Qb5 {[%clk 0:00:07.1]} 30. Nb3
{[%clk 0:01:00.3]} 30... h6 {[%clk 0:00:07.5]} 31. h4 {[%clk 0:00:59.3]} 31...
Rc8 {[%clk 0:00:07.4]} 32. Qe4 {[%clk 0:00:57.2]} 32... Rd8 {[%clk 0:00:02.9]}
33. Ra8 {[%clk 0:00:55.6]} 33... Rxa8 {[%clk 0:00:02.9]} 34. Qxa8+ {[%clk
0:00:56.3]} 34... Kh7 {[%clk 0:00:03.8]} 35. Qe4+ {[%clk 0:00:56.6]} 35... Kg8
{[%clk 0:00:04.2]} 36. g3 {[%clk 0:00:56.1]} 36... g6 {[%clk 0:00:03.6]} 37. Qd4
{[%clk 0:00:54.6]} 37... h5 {[%clk 0:00:03.5]} 38. e4 {[%clk 0:00:54]} 38... Kh7
{[%clk 0:00:02.6]} 39. Qd5 {[%clk 0:00:54.1]} 39... Qe2 {[%clk 0:00:01.8]} 40.
Qxf7+ {[%clk 0:00:53.5]} 40... Kh6 {[%clk 0:00:02.5]} 41. Qf8+ {[%clk
0:00:53.6]} 41... Kh7 {[%clk 0:00:02.7]} 42. Qxb4 {[%clk 0:00:54.2]} 1-0

[Event "Late-Titled-Tuesday-Blitz-April-30-2024"]
[Site "Chess.com"]
[Date "2024.04.30"]
[Round "3"]
[White "tgpgoat"]
[Black "Iskusnyh"]
[Result "1-0"]
[WhiteElo "2450"]
[BlackElo "2613"]
[TimeControl "180+1"]
[EndTime "14:29:07 PDT"]
[Termination "tgpgoat won on time"]

1. Nf3 {[%clk 0:03:00.9]} 1... d5 {[%clk 0:02:59.3]} 2. c4 {[%clk 0:02:58.4]}
2... c6 {[%clk 0:02:58.4]} 3. g3 {[%clk 0:02:58.7]} 3... Nf6 {[%clk 0:02:58.5]}
4. Bg2 {[%clk 0:02:58.6]} 4... Bf5 {[%clk 0:02:58.3]} 5. cxd5 {[%clk 0:02:58.9]}
5... cxd5 {[%clk 0:02:57.2]} 6. O-O {[%clk 0:02:59.8]} 6... Nc6 {[%clk
0:02:56.5]} 7. d4 {[%clk 0:03:00.3]} 7... e6 {[%clk 0:02:55.8]} 8. Nc3 {[%clk
0:03:00.9]} 8... Be7 {[%clk 0:02:55.2]} 9. Bf4 {[%clk 0:03:01.3]} 9... O-O
{[%clk 0:02:53.6]} 10. Rc1 {[%clk 0:03:01.5]} 10... h6 {[%clk 0:02:49.4]} 11. h4
{[%clk 0:03:00.6]} 11... Ne4 {[%clk 0:02:38.6]} 12. Nxe4 {[%clk 0:03:00.2]}
12... Bxe4 {[%clk 0:02:38.3]} 13. Qd2 {[%clk 0:02:58.1]} 13... Rc8 {[%clk
0:02:24.8]} 14. Ne5 {[%clk 0:02:56.4]} 14... Bxg2 {[%clk 0:02:12.7]} 15. Nxc6
{[%clk 0:02:53.8]} 15... Rxc6 {[%clk 0:02:10.6]} 16. Kxg2 {[%clk 0:02:53.4]}
16... Qb6 {[%clk 0:01:49.5]} 17. Rxc6 {[%clk 0:02:51.4]} 17... bxc6 {[%clk
0:01:49.5]} 18. Rc1 {[%clk 0:02:51]} 18... c5 {[%clk 0:01:43.7]} 19. dxc5 {[%clk
0:02:50.6]} 19... Bxc5 {[%clk 0:01:44.2]} 20. e3 {[%clk 0:02:29.8]} 20... Be7
{[%clk 0:01:30.7]} 21. Bc7 {[%clk 0:02:22.2]} 21... Qb7 {[%clk 0:01:26.7]} 22.
Be5 {[%clk 0:02:20.1]} 22... d4+ {[%clk 0:01:23.4]} 23. Kh2 {[%clk 0:02:20.1]}
23... dxe3 {[%clk 0:01:23.2]} 24. Qxe3 {[%clk 0:02:20.6]} 24... Qa6 {[%clk
0:01:06.1]} 25. Rc7 {[%clk 0:02:13.8]} 25... Bb4 {[%clk 0:00:49.7]} 26. Rxa7
{[%clk 0:02:11.4]} 26... Qf1 {[%clk 0:00:49.6]} 27. Bd4 {[%clk 0:01:59]} 27...
Rd8 {[%clk 0:00:36.6]} 28. Qf4 {[%clk 0:01:48.7]} 28... Rf8 {[%clk 0:00:07.2]}
29. Qe5 {[%clk 0:01:42.4]} 29... f6 {[%clk 0:00:07.3]} 30. Qxe6+ {[%clk
0:01:42.6]} 30... Kh8 {[%clk 0:00:07.7]} 31. Qg4 {[%clk 0:01:39.6]} 31... Rg8
{[%clk 0:00:04.2]} 32. Qg6 {[%clk 0:01:33.7]} 32... Bf8 {[%clk 0:00:02.8]} 33.
a4 {[%clk 0:01:06.2]} 33... Bd6 {[%clk 0:00:02.7]} 34. Rd7 {[%clk 0:00:56]}
34... Bb8 {[%clk 0:00:01.6]} 35. Rxg7 {[%clk 0:00:45]} 35... Rxg7 {[%clk
0:00:01.3]} 36. Qxf6 {[%clk 0:00:45.6]} 36... Bxg3+ {[%clk 0:00:01.3]} 37. fxg3
{[%clk 0:00:43.4]} 37... Qe2+ {[%clk 0:00:01.2]} 38. Kh3 {[%clk 0:00:43.3]}
38... Qg4+ {[%clk 0:00:00.7]} 39. Kg2 {[%clk 0:00:42.4]} 39... Qe2+ {[%clk
0:00:00.8]} 40. Qf2 {[%clk 0:00:42.3]} 40... Qe4+ {[%clk 0:00:00.6]} 41. Kh2
{[%clk 0:00:42.8]} 1-0